bitfinex-derivatives/quotes_SOLF0:USTF0_20230701
["timestamp","ask_amount","ask_price","bid_price","bid_amount"]
[1688177100909,0.81181337,18.545,18.532,118.85]
[1688177101107,0.81181337,18.545,18.517,475.4]
[1688177101108,0.74404997,18.54,18.529,118.85]
[1688177101508,117.72,18.538,18.526,118.27]
[1688177101710,0.82805061,18.534,18.526,171.862]
[1688177102316,0.82805061,18.534,18.526,53.592]
[1688177102908,0.82805061,18.534,18.523,118.85]
[1688177103114,118.85,18.524,18.51,53.592]
[1688177103318,475.68,18.532,18.51,253.592]
[1688177103319,0.87821594,18.519,18.51,253.592]
[1688177103515,0.81508133,18.516,18.51,253.592]
[1688177103819,0.81508133,18.516,18.511,9.92290435]
[1688177104211,0.81508133,18.516,18.512,118.85]
[1688177104420,0.81508133,18.516,18.513,9.92290435]
[1688177105117,118.85,18.525,18.513,9.92290435]
[1688177106023,117.72,18.522,18.513,9.92290435]
[1688177106318,0.873547,18.521,18.517,0.83269066]
[1688177106522,0.79203364,18.521,18.517,0.01808485]
[1688177106723,118.85,18.518,18.517,0.01808485]
[1688177107420,118.85,18.519,18.517,0.01808485]
[1688177110827,117.72,18.518,18.517,0.01808485]
[1688177111213,117.72,18.518,18.51,33.73972307]
[1688177111617,117.72,18.518,18.503,118.85]
[1688177111820,145.08696749,18.522,18.51,200.0]
[1688177112016,145.08696749,18.522,18.511,9.92507179]
[1688177112220,0.83665756,18.518,18.511,9.92507179]
[1688177117328,117.99,18.525,18.512,118.85]
[1688177117532,26.99019013,18.528,18.518,118.12]
[1688177117727,118.85,18.53,18.518,118.12]
[1688177118530,0.79386587,18.526,18.522,0.75965567]
[1688177125438,117.72,18.536,18.524,118.85]
[1688177126538,0.74829817,18.532,18.528,0.74714484]
[1688177127643,0.74829817,18.532,18.521,177.0585]
[1688177127644,118.85,18.531,18.521,58.2085]
[1688177128238,145.83181,18.531,18.518,118.12]
[1688177128439,117.94,18.528,18.515,118.85]
[1688177128643,0.82613402,18.523,18.52,0.75236458]
[1688177133456,26.3882696,18.531,18.521,118.85]
[1688177133853,118.85,18.534,18.521,118.85]
[1688177134449,0.74343041,18.529,18.526,0.77948468]
[1688177137948,0.74343041,18.529,18.519,118.12]
[1688177138152,118.85,18.523,18.509,118.69]
[1688177138558,145.84346,18.523,18.509,118.69]
[1688177139058,0.77232265,18.518,18.514,0.76518641]
[1688177139258,0.77232265,18.518,18.514,0.67181604]
[1688177139461,118.85,18.517,18.514,0.67181604]
[1688177140461,145.85221,18.517,18.514,0.67181604]
[1688177141858,118.85,18.515,18.514,0.67181604]
[1688177142759,145.85513,18.515,18.514,0.67181604]
[1688177146164,117.72,18.517,18.514,0.67181604]
[1688177146359,0.77232265,18.518,18.514,0.67181604]
[1688177146756,0.77232265,18.518,18.5,200.0]
[1688177146757,227.00221,18.517,18.49,200.0]
[1688177146959,117.94,18.507,18.495,58.8519]
[1688177147860,0.87481831,18.503,18.499,0.18746467]
[1688177148460,117.72,18.514,18.501,118.85]
[1688177148767,117.72,18.514,18.5,200.0]
[1688177148768,27.00367,18.516,18.504,118.85]
[1688177148954,117.99,18.515,18.501,118.85]
[1688177149467,0.86241531,18.51,18.498,118.85]
[1688177149763,118.85,18.511,18.498,118.85]
[1688177150561,0.78360053,18.506,18.503,0.26740555]
[1688177152760,26.39768953,18.516,18.503,0.26740555]
[1688177152761,26.39768953,18.516,18.504,118.12]
[1688177152965,26.39768953,18.516,18.507,118.27]
[1688177153169,118.85,18.52,18.507,118.27]
[1688177153759,0.74788855,18.515,18.512,0.75115067]
[1688177156170,118.85,18.514,18.501,118.85]
[1688177156369,117.72,18.511,18.5,200.0]
[1688177156560,117.72,18.511,18.498,118.85]
[1688177156759,117.72,18.511,18.5,200.0]
[1688177157168,0.75834044,18.507,18.504,0.2997094]
[1688177160675,0.75834044,18.507,18.504,0.18680749]
[1688177161264,117.94,18.506,18.504,0.18680749]
[1688177161870,27.01972,18.505,18.49,318.85]
[1688177162072,118.85,18.503,18.491,9.9312843]
[1688177162876,0.79653869,18.499,18.491,9.9312843]
[1688177164774,0.79653869,18.499,18.487,175.9686]
[1688177165080,0.87073358,18.495,18.487,175.9686]
[1688177166074,0.87073358,18.495,18.49,200.0]
[1688177166274,27.01972,18.505,18.494,118.85]
[1688177166578,146.34540248,18.509,18.494,118.85]
[1688177166766,173.35928248,18.509,18.494,118.85]
[1688177167172,0.8693432,18.503,18.5,0.73453507]
[1688177170191,145.8741,18.502,18.489,118.12]
[1688177170488,27.02556,18.501,18.489,118.12]
[1688177170900,75.62556,18.501,18.487,57.1186]
[1688177171099,0.829724,18.496,18.492,0.13787861]
[1688177172701,27.862594,18.496,18.492,0.0016801]
[1688177175206,27.03433,18.495,18.492,0.0016801]
[1688177176399,0.829724,18.496,18.492,0.0016801]
[1688177176699,27.862594,18.496,18.492,0.0016801]
[1688177177100,27.03433,18.495,18.492,0.0016801]
[1688177177693,0.829724,18.496,18.492,0.0016801]
[1688177182704,27.862594,18.496,18.492,0.0016801]
[1688177189114,27.03433,18.495,18.492,0.0016801]
[1688177189720,75.63433,18.495,18.481,58.4543]
[1688177190012,75.63433,18.495,18.472,48.6]
[1688177190013,48.6,18.489,18.472,48.6]
[1688177190215,27.11372246,18.496,18.46,394.4]
[1688177190216,48.42,18.486,18.469,48.59]
[1688177190418,48.6,18.483,18.466,48.59]
[1688177190607,27.05334,18.482,18.467,9.94301636]
[1688177190801,0.83211512,18.476,18.467,9.94301636]
[1688177191311,200.0,18.467,18.445,134.32783375]
[1688177191512,49.01,18.445,18.436,3.31519891]
[1688177191706,48.6,18.442,18.422,48.16]
[1688177191913,48.6,18.446,18.427,48.59]
[1688177192208,0.80449216,18.438,18.421,48.59]
[1688177192515,0.87148464,18.431,18.414,48.16]
[1688177192712,0.85322023,18.424,18.415,9.97131215]
[1688177193008,48.6,18.438,18.42,248.16]
[1688177193204,48.6,18.436,18.42,200.0]
[1688177193402,48.6,18.426,18.41,200.0]
[1688177193615,48.6,18.432,18.412,48.16]
[1688177193918,48.6,18.432,18.413,9.97379621]
[1688177194115,0.75972956,18.424,18.421,0.85462338]
[1688177194315,0.73831971,18.424,18.421,0.85462338]
[1688177194711,48.42,18.438,18.421,0.85462338]
[1688177194912,48.6,18.443,18.425,48.6]
[1688177195218,172.96498131,18.442,18.425,48.6]
[1688177195412,27.11349,18.441,18.425,48.6]
[1688177195808,0.84877578,18.435,18.431,49.39469154]
[1688177196019,48.6,18.452,18.434,48.16]
[1688177196219,27.0988,18.451,18.437,48.16]
[1688177196611,27.0988,18.451,18.434,48.6]
[1688177196807,48.42,18.449,18.431,48.6]
[1688177197014,48.6,18.446,18.43,58.9552]
[1688177197211,0.77672002,18.442,18.438,0.86196556]
[1688177197516,48.6,18.449,18.432,48.6]
[1688177197714,27.1032,18.448,18.432,48.6]
[1688177198621,48.6,18.438,18.42,107.5552]
[1688177198807,48.6,18.438,18.421,9.97172503]
[1688177199411,27.11937,18.437,18.421,9.97172503]
[1688177199614,0.88406172,18.431,18.417,48.59]
[1688177199817,48.6,18.429,18.411,48.59]
[1688177200009,48.42,18.426,18.412,9.97377039]
[1688177200215,48.6,18.423,18.405,48.16]
[1688177200415,48.6,18.423,18.406,9.97502921]
[1688177200612,27.14146,18.422,18.407,48.6]
[1688177200818,0.83657005,18.416,18.408,9.97502921]
[1688177201016,0.83657005,18.416,18.409,9.97502921]
[1688177201223,27.14146,18.422,18.41,9.97502921]
[1688177202317,0.86071094,18.418,18.414,0.8261263]
[1688177203224,27.14882,18.417,18.414,0.8261263]
[1688177205220,0.86071094,18.418,18.414,0.8261263]
[1688177206122,43.5,18.435,18.409,243.18]
[1688177206323,27.12379,18.434,18.41,9.97282911]
[1688177206722,27.12379,18.434,18.415,43.56]
[1688177206919,27.12379,18.434,18.416,9.97176753]
[1688177207222,0.85745372,18.427,18.423,0.8092736]
[1688177208419,27.13556,18.426,18.409,243.56]
[1688177208614,27.13556,18.426,18.41,9.97353448]
[1688177209127,27.13556,18.426,18.403,43.3]
[1688177209324,27.13556,18.426,18.404,9.97463148]
[1688177209524,0.88660782,18.416,18.413,0.76484358]
[1688177209730,0.83438335,18.416,18.413,0.75295529]
[1688177210317,27.15177,18.415,18.413,0.75295529]
[1688177210723,200.0,18.427,18.413,0.75295529]
[1688177210922,27.13556,18.426,18.403,43.18]
[1688177211120,27.13556,18.426,18.404,9.97877282]
[1688177211826,0.76287304,18.417,18.413,0.78456824]
[1688177212026,0.74918189,18.417,18.413,0.79965984]
[1688177212425,27.1503,18.416,18.413,0.79965984]
[1688177212628,27.1503,18.416,18.399,258.1542]
[1688177212822,27.1503,18.416,18.4,9.98080415]
[1688177213632,0.8053909,18.41,18.406,0.88729837]
[1688177215935,27.9645409,18.41,18.406,0.88729837]
[1688177217528,27.16062,18.409,18.406,0.88729837]
[1688177217725,27.16062,18.409,18.399,58.1542]
[1688177218133,27.16062,18.409,18.39,43.56]
[1688177218329,27.16062,18.409,18.391,63.68012758]
[1688177218535,27.16062,18.409,18.392,9.98312758]
[1688177218734,0.79538865,18.402,18.392,9.98312758]
[1688177218942,0.79538865,18.402,18.386,9.98312758]
[1688177219125,0.89180324,18.396,18.387,9.98526197]
[1688177219330,43.14,18.395,18.386,9.11496861]
[1688177219525,54.93667112,18.409,18.369,200.0]
[1688177219526,0.77713983,18.392,18.37,43.56]
[1688177219734,0.79047938,18.383,18.371,9.99457597]
[1688177219936,0.80493001,18.379,18.371,9.99457597]
[1688177220242,0.75683402,18.377,18.371,9.99457597]
[1688177220432,55.0593,18.396,18.364,43.56]
[1688177220433,0.80607029,18.376,18.364,43.56]
[1688177220635,0.82779711,18.372,18.364,43.56]
[1688177220931,43.5,18.391,18.365,9.99891747]
[1688177221131,200.0,18.387,18.365,9.99891747]
[1688177221332,43.56,18.385,18.365,9.99891747]
[1688177221526,43.56,18.385,18.361,9.99891747]
[1688177221727,43.56,18.385,18.362,9.99891747]
[1688177221943,43.56,18.391,18.372,0.7951213]
[1688177222233,43.56,18.391,18.373,9.99891747]
[1688177222441,43.56,18.391,18.374,9.99891747]
[1688177222631,43.56,18.391,18.364,43.56]
[1688177222828,43.56,18.391,18.365,9.99701698]
[1688177223034,0.87646036,18.379,18.376,0.84441503]
[1688177223229,0.8434766,18.379,18.364,43.56]
[1688177223429,204.26,18.391,18.365,9.99883048]
[1688177223635,43.56,18.386,18.365,9.99883048]
[1688177223831,204.26,18.386,18.361,9.99883048]
[1688177224028,204.26,18.386,18.362,9.99883048]
[1688177224228,204.26,18.386,18.359,43.18]
[1688177224229,204.26,18.386,18.363,9.99883048]
[1688177224533,0.75727015,18.376,18.372,0.80110452]
[1688177224733,0.86582145,18.376,18.372,0.80110452]
[1688177225835,26.95968894,18.391,18.373,9.9965073]
[1688177226037,43.56,18.392,18.374,9.9965073]
[1688177226338,43.56,18.392,18.375,9.9965073]
[1688177226538,27.18721,18.391,18.37,9.9965073]
[1688177226734,0.80151588,18.382,18.379,0.80307983]
[1688177226937,27.18721,18.391,18.369,100.8666]
[1688177227135,27.18721,18.391,18.37,9.99503883]
[1688177228046,0.7924178,18.382,18.379,0.82116014]
[1688177228246,27.202,18.381,18.369,57.3066]
[1688177228439,27.202,18.381,18.37,9.99707123]
[1688177229445,0.86487318,18.377,18.374,0.77186302]
[1688177230347,27.84441986,18.392,18.375,9.99581974]
[1688177230543,27.18721,18.391,18.375,9.99581974]
[1688177230841,27.18721,18.391,18.376,9.99581974]
[1688177231046,27.18721,18.391,18.37,9.99581974]
[1688177231341,0.85502146,18.382,18.379,0.86933962]
[1688177231542,0.85226845,18.382,18.379,0.89202495]
[1688177232252,27.18721,18.391,18.372,43.56]
[1688177232548,27.18721,18.391,18.378,243.56]
[1688177232752,43.56,18.404,18.379,9.99441105]
[1688177232937,27.16948,18.403,18.379,9.99441105]
[1688177233143,0.83457725,18.393,18.389,0.81870376]
[1688177233341,0.84947945,18.393,18.389,0.80791006]
[1688177233949,27.16948,18.403,18.389,0.80791006]
[1688177233950,27.16948,18.403,18.389,43.56]
[1688177234149,27.16948,18.403,18.39,9.98919873]
[1688177234346,43.5,18.415,18.39,9.98919873]
[1688177234554,27.1562,18.412,18.39,9.98919873]
[1688177235051,0.82861087,18.403,18.399,0.86185205]
[1688177235238,0.81611446,18.403,18.399,0.81121486]
[1688177238543,27.17095,18.402,18.399,0.81121486]
[1688177238841,0.81611446,18.403,18.399,0.81121486]
[1688177243552,200.0,18.417,18.399,0.81121486]
[1688177243745,27.1503,18.416,18.398,43.18]
[1688177244552,0.42473522,18.409,18.405,0.84980466]
[1688177246644,27.1503,18.416,18.405,0.84980466]
[1688177246845,57.1722,18.425,18.405,0.84980466]
[1688177247055,27.75824495,18.421,18.405,56.8059]
[1688177247352,27.13851,18.424,18.399,43.56]
[1688177247554,43.56,18.422,18.399,43.56]
[1688177247856,43.5,18.416,18.392,43.3]
[1688177248046,43.5,18.416,18.392,53.7596]
[1688177248651,43.5,18.416,18.388,200.0]
[1688177248652,27.15177,18.415,18.388,200.0]
[1688177248850,0.78107484,18.403,18.4,0.80778604]
[1688177249057,0.78107484,18.403,18.4,0.76738539]
[1688177249755,27.15177,18.415,18.397,43.18]
[1688177250249,27.47375093,18.419,18.403,43.56]
[1688177250455,58.3272,18.424,18.403,43.56]
[1688177250756,27.13998,18.423,18.412,0.74696331]
[1688177250957,27.13998,18.423,18.416,0.8899297]
[1688177251157,27.13998,18.423,18.418,0.7667377]
[1688177251460,27.13998,18.423,18.419,0.77601451]
[1688177251660,27.13998,18.423,18.419,0.80725085]
[1688177254158,43.14,18.431,18.419,0.80725085]
[1688177254355,243.56,18.437,18.423,0.89441647]
[1688177254560,29.11644233,18.436,18.428,0.86035736]
[1688177254752,1.99559233,18.435,18.408,43.56]
[1688177254956,173.08656163,18.434,18.408,43.56]
[1688177255155,173.08803163,18.433,18.408,43.56]
[1688177255464,173.08950163,18.432,18.414,43.3]
[1688177255661,27.12673,18.432,18.414,43.3]
[1688177255856,0.86772853,18.425,18.421,0.74138263]
[1688177256463,27.12673,18.432,18.421,0.74138263]
[1688177256864,145.96031124,18.431,18.421,0.74138263]
[1688177257259,145.96031124,18.43,18.421,0.74138263]
[1688177257468,145.96031124,18.429,18.424,0.87669263]
[1688177257666,145.96031124,18.428,18.425,0.77271213]
[1688177257864,27.12354,18.438,18.425,0.81716891]
[1688177258169,145.94254931,18.437,18.43,0.74012786]
[1688177258363,145.94254931,18.436,18.432,0.76883938]
[1688177258560,145.94254931,18.435,18.432,0.80054909]
[1688177258755,145.94254931,18.434,18.432,0.80054909]
[1688177258959,71.23608246,18.442,18.42,57.566]
[1688177258960,1.15351039,18.427,18.42,57.566]
[1688177259165,71.23608246,18.442,18.419,43.56]
[1688177259466,27.67608246,18.442,18.42,57.566]
[1688177259659,27.11349,18.441,18.42,57.566]
[1688177260061,27.11349,18.441,18.429,0.75770669]
[1688177260363,200.0,18.438,18.414,43.56]
[1688177260567,1.99549354,18.437,18.415,58.9017]
[1688177260865,27.12085,18.436,18.415,58.9017]
[1688177261061,27.12085,18.436,18.424,0.87899522]
[1688177261263,27.12085,18.436,18.42,43.18]
[1688177261763,27.12085,18.436,18.415,58.9017]
[1688177262159,27.12085,18.436,18.424,0.85197044]
[1688177262463,27.12085,18.436,18.415,58.9017]
[1688177262666,27.12085,18.436,18.414,43.56]
[1688177263358,0.83965547,18.427,18.423,0.75378249]
[1688177263566,27.12085,18.436,18.415,56.8031]
[1688177263754,0.80140591,18.427,18.415,56.8031]
[1688177263957,27.12085,18.436,18.415,56.8031]
[1688177264165,1.99549166,18.435,18.415,56.8031]
[1688177264361,27.12379,18.434,18.417,43.18]
[1688177264561,27.12379,18.434,18.417,243.18]
[1688177264758,27.19956201,18.436,18.417,243.18]
[1688177264954,57.7833,18.443,18.417,243.18]
[1688177265165,29.10708966,18.442,18.428,0.77602444]
[1688177265461,1.99506966,18.441,18.433,0.82953777]
[1688177265655,1.99506966,18.441,18.417,243.18]
[1688177265656,1.99506966,18.441,18.435,0.88835982]
[1688177265859,1.99506966,18.441,18.436,0.77785725]
[1688177266054,1.99506966,18.441,18.437,0.75606421]
[1688177266261,1.99506966,18.441,18.437,0.82363605]
[1688177266960,27.11496,18.44,18.417,243.18]
[1688177268059,27.11496,18.44,18.427,0.80040742]
[1688177268264,55.355,18.457,18.427,0.80040742]
[1688177268265,43.56,18.452,18.427,200.0]
[1688177268466,1.99445367,18.451,18.428,43.56]
[1688177268665,1.99445367,18.451,18.433,43.56]
[1688177268866,1.99445367,18.456,18.434,58.2491]
[1688177269064,29.08737367,18.455,18.443,0.74545086]
[1688177269369,29.08737367,18.455,18.434,58.2491]
[1688177269370,29.08884367,18.454,18.447,0.83532071]
[1688177269562,29.08884367,18.454,18.449,0.74908324]
[1688177269563,1.99445367,18.453,18.449,0.74908324]
[1688177269757,1.99445367,18.453,18.449,0.73733662]
[1688177270158,0.73505651,18.446,18.435,56.8885]
[1688177271168,0.73505651,18.446,18.439,0.82441307]
[1688177274874,0.73505651,18.446,18.417,200.0]
[1688177274875,0.73505651,18.446,18.423,43.56]
[1688177275181,29.10242662,18.445,18.423,43.56]
[1688177275375,29.10389662,18.444,18.423,43.56]
[1688177275578,29.10536662,18.443,18.423,43.56]
[1688177275771,27.11202,18.442,18.421,58.3822]
[1688177275978,0.88741866,18.433,18.43,0.77981986]
[1688177276177,0.8065146,18.433,18.43,0.73449196]
[1688177278781,27.12673,18.432,18.418,103.534]
[1688177279178,145.96815193,18.431,18.418,54.624]
[1688177279382,173.09635193,18.431,18.418,54.624]
[1688177279586,145.96815193,18.43,18.415,48.91]
[1688177279880,0.74043234,18.424,18.421,0.74381405]
[1688177280081,145.96815193,18.423,18.421,0.74381405]
[1688177280473,0.74043234,18.424,18.421,0.74381405]
[1688177281877,0.74043234,18.424,18.422,48.91]
[1688177282080,0.74043234,18.424,18.421,0.74381405]
[1688177283081,0.74043234,18.424,18.421,49.65381405]
[1688177283981,0.74043234,18.424,18.423,48.91]
[1688177284783,27.48294436,18.437,18.423,48.91]
[1688177284989,58.6973,18.44,18.423,48.91]
[1688177285177,75.47693057,18.441,18.423,48.91]
[1688177285378,102.59042057,18.441,18.423,48.91]
[1688177285785,0.73281847,18.434,18.43,0.78402333]
[1688177289681,48.91,18.451,18.433,48.91]
[1688177289886,1.99430843,18.45,18.433,48.91]
[1688177290088,28.9516883,18.45,18.433,48.91]
[1688177290284,48.91,18.454,18.436,48.91]
[1688177290479,28.56096771,18.453,18.439,48.73]
[1688177290675,0.8204168,18.448,18.439,48.73]
[1688177290880,0.8204168,18.448,18.444,0.83495658]
[1688177291083,0.29320484,18.443,18.437,48.91]
[1688177291983,0.85746179,18.447,18.443,0.77180711]
[1688177292288,24.05255762,18.468,18.445,48.91]
[1688177292289,48.91,18.463,18.445,48.91]
[1688177292582,1.99321343,18.462,18.448,48.91]
[1688177293379,0.77646865,18.457,18.453,0.82177954]
[1688177293983,0.77646865,18.457,18.453,49.73177954]
[1688177294179,106.9194,18.471,18.453,48.91]
[1688177294384,1.99263657,18.47,18.456,48.91]
[1688177294580,1.99263657,18.472,18.456,48.91]
[1688177294785,1.99263657,18.469,18.456,48.91]
[1688177294984,1.99263657,18.471,18.456,48.91]
[1688177295185,1.99263657,18.47,18.456,48.91]
[1688177295393,0.11136514,18.465,18.462,0.73310832]
[1688177295587,0.11136514,18.465,18.462,0.79328092]
[1688177295887,0.11136514,18.465,18.462,49.70328092]
[1688177297490,0.11136514,18.465,18.462,0.79328092]
[1688177297694,21.97970296,18.461,18.457,48.91]
[1688177298695,22.77167974,18.461,18.457,49.71555226]
[1688177299592,22.77167974,18.461,18.457,0.80555226]
[1688177299897,18.35807974,18.461,18.457,0.80555226]
[1688177300083,48.7,18.472,18.457,0.80555226]
[1688177300386,147.27831356,18.471,18.456,48.91]
[1688177300582,147.27831356,18.47,18.456,48.91]
[1688177300786,147.27831356,18.469,18.456,48.91]
[1688177300992,147.27831356,18.468,18.456,48.91]
[1688177301196,0.11288931,18.464,18.46,0.80389711]
[1688177301395,0.11288931,18.464,18.46,0.74479292]
[1688177301897,145.39880412,18.464,18.46,0.74479292]
[1688177302197,147.27830509,18.463,18.46,0.74479292]
[1688177302394,145.28591481,18.462,18.46,0.74479292]
[1688177302588,0.11288931,18.464,18.46,0.74479292]
[1688177303397,0.11288931,18.464,18.462,48.91]
[1688177304187,1.99217086,18.479,18.462,48.91]
[1688177304501,1.99217086,18.478,18.465,48.91]
[1688177304695,1.99217086,18.479,18.465,48.91]
[1688177304996,1.99217086,18.478,18.465,48.91]
[1688177305195,1.99217086,18.477,18.47,0.79540686]
[1688177305497,1.99217086,18.476,18.472,0.81436098]
[1688177305695,1.99217086,18.483,18.472,0.76761253]
[1688177305994,53.8248,18.488,18.452,26.75389729]
[1688177305995,1.99217086,18.482,18.476,0.84233988]
[1688177306192,1.99217086,18.481,18.47,48.91]
[1688177306388,48.91,18.487,18.466,200.0]
[1688177306389,1.99217086,18.48,18.477,0.82053206]
[1688177306694,48.7,18.491,18.477,0.76325564]
[1688177306695,7.086e-05,18.479,18.477,0.76325564]
[1688177306895,1.99059029,18.49,18.476,49.79692319]
[1688177307090,106.9211,18.496,18.481,0.78809894]
[1688177307091,1.99059029,18.489,18.481,0.78809894]
[1688177307294,106.9211,18.496,18.483,0.79915168]
[1688177307295,1.99059029,18.488,18.483,0.79915168]
[1688177307501,1.99059029,18.487,18.484,0.85020099]
[1688177307692,106.9211,18.496,18.484,0.85020099]
[1688177307693,1.99059029,18.495,18.484,0.77403161]
[1688177307888,1.99059029,18.494,18.488,0.88800877]
[1688177308092,1.99059029,18.493,18.476,48.91]
[1688177308295,1.99059029,18.492,18.476,48.91]
[1688177308490,1.99059029,18.491,18.476,48.91]
[1688177308693,1.99059029,18.49,18.476,48.91]
[1688177308895,1.99059029,18.489,18.476,48.91]
[1688177309193,0.79049491,18.484,18.481,0.73523933]
[1688177309392,1.99059029,18.483,18.481,0.80938547]
[1688177309788,0.80281218,18.484,18.481,0.80938547]
[1688177310190,1.99042163,18.483,18.481,0.80938547]
[1688177310700,3.381e-05,18.484,18.481,0.80938547]
[1688177310897,1.98985632,18.495,18.476,248.91]
[1688177311901,1.98985632,18.495,18.484,0.73762655]
[1688177320707,1.98985632,18.495,18.486,200.0]
[1688177320905,48.7,18.496,18.489,0.77319352]
[1688177321299,47.89418392,18.496,18.489,0.77319352]
[1688177322610,144.43133095,18.495,18.489,0.77319352]
[1688177323804,47.89418392,18.496,18.489,0.77319352]
[1688177325806,57.8929,18.506,18.489,0.77319352]
[1688177326008,146.19762707,18.505,18.496,0.78555196]
[1688177326202,146.19762707,18.504,18.496,0.78555196]
[1688177326408,146.19762707,18.503,18.496,0.78555196]
[1688177326700,146.19762707,18.502,18.496,0.78555196]
[1688177326902,146.19762707,18.501,18.496,0.78555196]
[1688177327110,146.19762707,18.5,18.496,0.78555196]
[1688177327411,146.19762707,18.499,18.496,0.78555196]
[1688177327604,146.19762707,18.498,18.496,0.78555196]
[1688177327803,146.19762707,18.497,18.496,0.78555196]
[1688177328711,1.98895495,18.497,18.496,0.78555196]
[1688177329705,1.98895495,18.506,18.496,0.78555196]
[1688177329912,146.29482033,18.505,18.496,0.78555196]
[1688177330207,146.29482033,18.504,18.496,0.78555196]
[1688177330403,195.64,18.507,18.496,0.78555196]
[1688177330404,146.29482033,18.503,18.496,0.78555196]
[1688177330599,146.29482033,18.502,18.496,0.78555196]
[1688177330804,146.29482033,18.501,18.496,0.78555196]
[1688177331004,146.29482033,18.5,18.496,0.78555196]
[1688177331206,146.29482033,18.499,18.496,0.78555196]
[1688177331405,146.29482033,18.498,18.496,0.78555196]
[1688177331606,57.1263,18.506,18.487,53.7354]
[1688177331607,0.78408907,18.494,18.487,53.7354]
[1688177331809,146.35739479,18.493,18.487,53.7354]
[1688177332111,1.98895495,18.492,18.487,53.7354]
[1688177332310,1.98895495,18.491,18.487,53.7354]
[1688177332515,202.63267686,18.506,18.487,53.7354]
[1688177332712,0.78350435,18.498,18.495,0.74458975]
[1688177332912,146.48260334,18.497,18.495,0.74458975]
[1688177333115,146.48260334,18.496,18.495,0.74458975]
[1688177333614,146.48260334,18.496,18.487,53.7354]
[1688177333808,146.48260334,18.495,18.481,27.52163184]
[1688177334008,146.48260334,18.494,18.476,200.0]
[1688177334316,146.48260334,18.493,18.477,58.6869]
[1688177334518,146.48260334,18.492,18.477,58.6869]
[1688177334711,1.98943976,18.491,18.483,0.8873187]
[1688177335017,202.63267686,18.506,18.477,58.6869]
[1688177335313,146.68582817,18.505,18.485,200.0]
[1688177335521,146.68582817,18.504,18.485,200.0]
[1688177335705,0.77616489,18.496,18.493,0.85073114]
[1688177337219,146.71152344,18.495,18.477,58.6869]
[1688177337414,146.71152344,18.494,18.476,27.26132875]
[1688177337610,146.71152344,18.493,18.477,57.5674]
[1688177337820,146.71152344,18.492,18.475,200.0]
[1688177338011,1.98940433,18.491,18.476,57.5674]
[1688177338214,24.05255762,18.505,18.482,0.8062484]
[1688177338411,146.64717224,18.504,18.485,200.0]
[1688177338613,146.64717224,18.503,18.485,200.0]
[1688177338814,146.64717224,18.502,18.486,57.5674]
[1688177339114,146.64717224,18.501,18.486,57.5674]
[1688177339328,0.77935653,18.495,18.492,0.81109593]
[1688177339512,0.8276054,18.495,18.492,0.85764476]
[1688177341411,57.1263,18.506,18.486,57.5674]
[1688177341625,146.70503837,18.505,18.486,57.5674]
[1688177341924,146.70503837,18.504,18.486,57.5674]
[1688177342125,146.70503837,18.503,18.486,57.5674]
[1688177342324,146.70503837,18.502,18.493,0.73783317]
[1688177342531,146.70503837,18.501,18.496,0.8197826]
[1688177342825,57.1263,18.506,18.497,0.7446594]
[1688177342826,146.58055331,18.5,18.497,0.7446594]
[1688177343023,1.98888149,18.499,18.497,0.81201907]
[1688177343328,57.1263,18.506,18.497,0.81201907]
[1688177343531,146.57858461,18.505,18.497,0.81201907]
[1688177343828,146.57858461,18.504,18.497,0.81201907]
[1688177344015,146.57858461,18.503,18.497,0.81201907]
[1688177344325,146.57858461,18.502,18.486,84.94399542]
[1688177344524,146.57858461,18.501,18.486,84.94399542]
[1688177344726,146.57858461,18.5,18.486,84.94399542]
[1688177345024,146.57858461,18.499,18.486,84.94399542]
[1688177345221,0.78559378,18.494,18.491,0.80053222]
[1688177345425,0.81216528,18.494,18.491,0.76690106]
[1688177345724,6.0,27.959,18.486,84.94399542]